bitfinex-derivatives/quotes_BTCF0:USTF0_20241005
["timestamp","ask_amount","ask_price","bid_price","bid_amount"]
[1728147920264,0.0038,62010.0,62002.0,0.176446]
[1728147920461,0.00642011,62003.0,62002.0,0.176446]
[1728147920859,0.0038,62010.0,62002.0,0.60384]
[1728147921065,0.3608,62013.0,62011.0,0.056438]
[1728147921066,0.0038,62013.0,62011.0,0.056438]
[1728147921259,0.00241929,62016.0,62012.0,0.176437]
[1728147921454,0.00241929,62016.0,62015.0,0.12]
[1728147922072,0.06024782,62016.0,62015.0,0.12]
[1728147922366,0.00241929,62016.0,62015.0,0.12]
[1728147923369,0.00241929,62016.0,62013.0,0.12]
[1728147924065,0.00741929,62016.0,62015.0,0.121]
[1728147924265,0.01341929,62016.0,62015.0,0.122]
[1728147924569,0.00941929,62016.0,62015.0,0.121]
[1728147924956,0.00941929,62016.0,62015.0,0.12]
[1728147925159,0.00941929,62016.0,62015.0,0.121]
[1728147926269,0.00941929,62016.0,62015.0,0.177435]
[1728147926456,0.00341929,62016.0,62015.0,0.177435]
[1728147926661,0.00341929,62016.0,62015.0,0.178435]
[1728147926662,0.00941929,62016.0,62015.0,0.178435]
[1728147929362,0.00941929,62016.0,62015.0,0.002]
[1728147930265,0.09005753,62016.0,62015.0,0.178435]
[1728147930470,0.15322578,62016.0,62015.0,0.178435]
[1728147930677,0.08005071,62016.0,62015.0,0.178435]
[1728147934369,0.12954072,62016.0,62015.0,0.178435]
[1728147937071,0.13354072,62016.0,62015.0,0.177435]
[1728147937383,0.25753673,62016.0,62015.0,0.12]
[1728147937680,0.25453673,62016.0,62015.0,0.176435]
[1728147938264,0.25453673,62016.0,62005.0,0.3608]
[1728147938265,0.22339053,62016.0,62005.0,0.28723166]
[1728147938472,0.22339053,62016.0,62015.0,0.12]
[1728147938473,0.00741929,62016.0,62015.0,0.12]
[1728147938677,0.22038881,62016.0,62015.0,0.12]
[1728147939576,0.21738881,62016.0,62015.0,0.176435]
[1728147940273,0.22038881,62016.0,62015.0,0.176435]
[1728147941981,0.2203861,62016.0,62015.0,0.176435]
[1728147943075,0.47640494,62016.0,62015.0,0.176435]
[1728147943769,0.2203861,62016.0,62015.0,0.176435]
[1728147944172,0.2183861,62016.0,62015.0,0.184435]
[1728147944374,0.2183861,62016.0,62015.0,0.12]
[1728147944682,0.2183861,62016.0,62015.0,0.176435]
[1728147944881,0.2153861,62016.0,62015.0,0.182435]
[1728147945274,0.00241929,62016.0,62015.0,0.182435]
[1728147948677,0.00241929,62016.0,62015.0,0.21111712]
[1728147951677,0.00241929,62016.0,62015.0,0.09111712]
[1728147951886,0.00241929,62016.0,62015.0,0.21111712]
[1728147952381,0.00241929,62016.0,62014.0,0.00788711]
[1728147952382,0.28987403,62016.0,62014.0,0.00788711]
[1728147952571,0.28987403,62016.0,62014.0,0.056436]
[1728147952572,0.28745474,62015.0,62014.0,0.056436]
[1728147952777,0.28745474,62015.0,62014.0,0.18447808]
[1728147953785,0.28845474,62015.0,62014.0,0.19247808]
[1728147954785,0.28845474,62015.0,62014.0,0.19947808]
[1728147955888,0.28845474,62015.0,62014.0,0.19247808]
[1728147956189,0.28945474,62015.0,62014.0,0.19847808]
[1728147957192,0.28945474,62015.0,62014.0,0.1710424]
[1728147957384,0.28945474,62015.0,62014.0,0.02204208]
[1728147957579,0.28945474,62015.0,62014.0,0.19847808]
[1728147958084,0.28945474,62015.0,62014.0,0.22751336]
[1728147958292,0.28945474,62015.0,62003.0,0.12201498]
[1728147958492,0.28745474,62014.0,62008.0,0.3608]
[1728147958699,0.28745474,62013.0,62008.0,0.36905412]
[1728147958996,0.28745474,62012.0,62011.0,0.056438]
[1728147959492,0.24797401,62012.0,62011.0,0.056438]
[1728147959986,0.60877401,62012.0,62003.0,0.08302719]
[1728147960187,0.24797401,62011.0,62003.0,0.08302719]
[1728147960388,0.3608,62012.0,62011.0,0.056438]
[1728147960686,0.3618,62012.0,62011.0,0.064438]
[1728147961082,0.3618,62012.0,62011.0,0.056438]
[1728147961083,0.3608,62012.0,62011.0,0.056438]
[1728147961286,0.3618,62012.0,62011.0,0.056438]
[1728147962892,0.3628,62012.0,62011.0,0.061438]
[1728147963193,0.3628,62012.0,62011.0,0.005]
[1728147963391,0.3628,62012.0,62011.0,0.125]
[1728147965287,0.3628,62012.0,62007.0,0.02871328]
[1728147965582,0.3628,62012.0,62011.0,0.12]
[1728147967196,0.7226,62012.0,62011.0,0.12]
[1728147967487,0.83092125,62012.0,62011.0,0.11035571]
[1728147968291,0.83092125,62012.0,62011.0,0.11635571]
[1728147968491,0.10932125,62012.0,62011.0,0.11635571]
[1728147968701,0.83092125,62012.0,62011.0,0.11635571]
[1728147971994,0.83092125,62012.0,62011.0,0.014]
[1728147972193,0.83092125,62012.0,62011.0,0.134]
[1728147972497,1.03929872,62012.0,62011.0,0.134]
[1728147972897,0.83092125,62012.0,62011.0,0.134]
[1728147973599,0.83091945,62012.0,62011.0,0.134]
[1728147975399,0.7236,62012.0,62011.0,0.134]
[1728147976795,0.7236,62012.0,62005.0,0.12]
[1728147977109,0.3608,62006.0,62002.0,0.04834525]
[1728147977295,0.3608,62006.0,62001.0,0.07672213]
[1728147977296,0.063,62005.0,62001.0,0.07672213]
[1728147977494,0.0944,62005.0,62001.0,0.02837688]
[1728147977804,0.0944,62005.0,62000.0,0.10479325]
[1728147978095,0.0944,62005.0,62000.0,0.056448]
[1728147978301,0.0944,62005.0,62004.0,0.12]
[1728147978895,0.0954,62005.0,62004.0,0.12]
[1728147979699,0.0964,62005.0,62004.0,0.12]
[1728147980393,0.0954,62005.0,62004.0,0.12]
[1728147980592,0.0964,62005.0,62004.0,0.12]
[1728147989719,0.0964,62005.0,62001.0,0.056447]
[1728147989899,0.0964,62005.0,62004.0,0.12]
[1728147990406,0.3608,62006.0,62004.0,0.12]
[1728147990705,0.3608,62006.0,62005.0,0.056444]
[1728147991205,0.0808,62006.0,62005.0,0.056444]
[1728147992011,0.0818,62006.0,62005.0,0.176444]
[1728147993003,0.0828,62006.0,62005.0,0.177444]
[1728147993401,0.0828,62006.0,62005.0,0.178444]
[1728147994010,0.0828,62006.0,62005.0,0.20760759]
[1728147995511,0.13229357,62006.0,62005.0,0.122]
[1728147995707,0.19012539,62006.0,62005.0,0.122]
[1728147996508,0.19012539,62006.0,62005.0,0.002]
[1728147996712,0.19012539,62006.0,62005.0,0.122]
[1728147996900,0.19012539,62006.0,62005.0,0.12]
[1728147997599,0.09889875,62006.0,62005.0,0.2428886]
[1728147997800,0.21889875,62006.0,62003.0,0.08054175]
[1728147998007,0.21889875,62006.0,62001.0,0.08054175]
[1728147998008,0.056446,62002.0,62001.0,0.08054175]
[1728147998201,0.056446,62002.0,62000.0,0.20054175]
[1728147998409,0.0331,62001.0,62000.0,0.20054175]
[1728147998807,0.089547,62001.0,62000.0,0.20054175]
[1728147999610,0.090547,62001.0,62000.0,0.12]
[1728148001223,0.091547,62001.0,62000.0,0.12]
[1728148002612,0.452347,62001.0,62000.0,0.12]
[1728148003115,0.452347,62001.0,62000.0,0.18441835]
[1728148003312,0.452347,62001.0,62000.0,0.12]
[1728148005307,0.813147,62001.0,62000.0,0.12]
[1728148005511,0.75665723,62001.0,62000.0,0.26959701]
[1728148006111,0.75665723,62001.0,62000.0,0.26959673]
[1728148006414,0.03505723,62001.0,62000.0,0.26959691]
[1728148006714,0.75665723,62001.0,62000.0,0.26959691]
[1728148008813,0.75665723,62001.0,62000.0,0.26960014]
[1728148009318,0.87665723,62001.0,62000.0,0.14960014]
[1728148009510,0.056448,62000.0,61998.0,0.09662053]
[1728148009712,0.176449,61999.0,61998.0,0.09662053]
[1728148009916,0.056452,61996.0,61994.0,0.12]
[1728148010920,0.3608,61995.0,61994.0,0.12]
[1728148012219,0.3911,61995.0,61994.0,0.12]
[1728148012622,0.3921,61995.0,61994.0,0.12]
[1728148013124,0.3618,61995.0,61994.0,0.22474485]
[1728148013427,0.3618,61995.0,61994.0,0.176454]
[1728148013616,0.3628,61995.0,61994.0,0.176454]
[1728148013814,0.3628,61995.0,61994.0,0.209254]
[1728148014818,0.3628,61995.0,61994.0,0.3067418]
[1728148015526,0.3628,61995.0,61994.0,0.3767418]
[1728148015821,0.3628,61995.0,61994.0,0.312354]
[1728148016416,0.3628,61995.0,61994.0,0.3767418]
[1728148018118,0.50216001,61998.0,61994.0,0.3202878]
[1728148018317,0.5,61998.0,61997.0,0.1208388]
[1728148018527,0.5,61998.0,61997.0,0.056451]
[1728148019422,0.501,61998.0,61997.0,0.056451]
[1728148019627,0.502,61998.0,61997.0,0.056451]
[1728148020632,0.502,61998.0,61997.0,0.50519651]
[1728148020633,0.39710108,61998.0,61997.0,0.50519651]
[1728148020929,0.31640972,61998.0,61997.0,0.63413225]
[1728148021524,0.31640972,61998.0,61997.0,0.53353486]
[1728148022329,0.0038,62004.0,62002.0,0.056446]
[1728148022626,0.00621958,62008.0,62003.0,0.46247497]
[1728148022829,0.00621958,62008.0,62002.0,0.056446]
[1728148022830,0.00241958,62008.0,62007.0,0.19]
[1728148023027,0.00241958,62008.0,62007.0,0.31289313]
[1728148024325,0.00241958,62008.0,62007.0,0.46246947]
[1728148024827,0.00341958,62008.0,62007.0,0.46246947]
[1728148025030,0.00441958,62008.0,62007.0,0.46446947]
[1728148025531,0.00441958,62008.0,62007.0,0.46646947]
[1728148027530,0.00441958,62008.0,62007.0,0.194]
[1728148027531,0.0934064,62008.0,62007.0,0.194]
[1728148027726,0.15124367,62008.0,62007.0,0.194]
[1728148029932,0.0934064,62008.0,62007.0,0.194]
[1728148030135,0.15124367,62008.0,62007.0,0.194]
[1728148031420,0.0934064,62008.0,62007.0,0.194]
[1728148032537,0.09340726,62008.0,62007.0,0.194]
[1728148034135,0.09340726,62008.0,62007.0,0.004]
[1728148035628,0.00441958,62008.0,62007.0,0.18842824]
[1728148040349,0.00441958,62008.0,62007.0,0.18842117]
[1728148041433,0.00441958,62008.0,62007.0,0.124]
[1728148042530,0.04390952,62008.0,62007.0,0.124]
[1728148042830,0.09340748,62008.0,62007.0,0.180442]
[1728148046641,0.09339948,62008.0,62007.0,0.180442]
[1728148049649,0.0038,62015.0,62011.0,0.056438]
[1728148049838,0.20836161,62016.0,62014.0,0.12]
[1728148050040,0.3939,62017.0,62014.0,0.12]
[1728148050240,0.3939,62017.0,62016.0,0.06447817]
[1728148051353,0.3939,62017.0,62015.0,0.06447817]
[1728148051539,0.451333,62017.0,62015.0,0.06447817]
[1728148051741,0.056434,62016.0,62015.0,0.06447817]
[1728148051958,0.056435,62015.0,62014.0,0.06647817]
[1728148052245,0.176435,62015.0,62014.0,0.06647817]
[1728148053356,0.176435,62015.0,62014.0,0.002]
[1728148054145,0.176435,62015.0,62013.0,0.12]
[1728148054941,0.177435,62015.0,62014.0,0.003]
[1728148055752,0.176435,62015.0,62013.0,0.12]
[1728148055955,0.177435,62015.0,62013.0,0.123]
[1728148056753,0.178435,62015.0,62014.0,0.003]
[1728148057447,0.178435,62015.0,62014.0,0.006]
[1728148057647,0.09097969,62015.0,62014.0,0.006]
[1728148058250,0.09097969,62015.0,62014.0,0.003]
[1728148058545,0.09097969,62015.0,62013.0,0.126]
[1728148058751,0.08897969,62014.0,62013.0,0.126]
[1728148058950,0.08897969,62014.0,62013.0,0.123]
[1728148059150,0.08897969,62014.0,62013.0,0.12]
[1728148059750,0.08897969,62014.0,62013.0,0.123]
[1728148060353,0.08897913,62014.0,62013.0,0.123]
[1728148061261,0.21686541,62014.0,62013.0,0.123]
[1728148061454,0.09097913,62014.0,62013.0,0.126]
[1728148061844,0.14741513,62014.0,62013.0,0.006]
[1728148062051,0.14741513,62014.0,61999.0,0.0113]
[1728148062052,1.20513913,62014.0,61999.0,0.0113]
[1728148062251,1.20513913,62014.0,61995.0,0.0638]
[1728148062252,0.12,62002.0,61996.0,0.056452]
[1728148062449,0.12,62002.0,61991.0,0.12]
[1728148062450,0.056449,62000.0,61991.0,0.12]
[1728148062749,0.12,61997.0,61995.0,0.12]
[1728148062953,0.08897913,61996.0,61995.0,0.12]
[1728148064652,0.056449,61999.0,61995.0,0.56871625]
[1728148064653,0.12,61999.0,61995.0,0.56871625]
[1728148064956,0.12,61999.0,61996.0,0.38522314]
[1728148065253,0.12,61999.0,61997.0,0.27246742]
[1728148065450,0.12,61999.0,61998.0,0.27246742]
[1728148066252,0.121,61999.0,61998.0,0.27246742]
[1728148066642,0.121,61999.0,61998.0,0.27249854]
[1728148067053,0.121,61999.0,61998.0,0.12290376]
[1728148067454,0.121,61999.0,61998.0,0.21950346]
[1728148067759,0.177449,61999.0,61998.0,0.12290376]
[1728148068160,0.177449,61999.0,61998.0,0.21950346]
[1728148068360,0.177449,61999.0,61998.0,0.12290376]
[1728148068848,0.178449,61999.0,61998.0,0.12290376]
[1728148069448,0.176449,61999.0,61998.0,0.12290376]
[1728148069654,0.178449,61999.0,61998.0,0.12291197]
[1728148070760,0.058449,61999.0,61998.0,0.12291197]
[1728148072757,0.058449,61999.0,61996.0,0.1682584]
[1728148074454,0.058449,61999.0,61996.0,0.12]
[1728148075650,0.058449,61999.0,61998.0,0.0482584]
[1728148076850,0.058449,61999.0,61997.0,0.0482584]
[1728148077365,0.058449,61999.0,61998.0,0.0482584]
[1728148079866,0.09794502,61999.0,61996.0,0.12]
[1728148080159,0.03949602,61998.0,61996.0,0.12]
[1728148081750,0.04049602,61998.0,61996.0,0.12]
[1728148081951,0.03949602,61997.0,61996.0,0.12]
[1728148083455,0.03949602,61997.0,61996.0,0.176452]
[1728148084163,0.04149602,61997.0,61996.0,0.176452]
[1728148084351,0.09100061,61997.0,61996.0,0.176452]
[1728148086055,0.16202972,61997.0,61996.0,0.176452]
[1728148086255,0.25103033,61997.0,61996.0,0.176452]
[1728148086457,0.09100061,61997.0,61996.0,0.176452]
[1728148087165,0.002,61997.0,61996.0,0.208752]
[1728148087457,0.002,61997.0,61996.0,0.569552]
[1728148087763,0.067742,62007.0,61996.0,0.569552]
[1728148087764,0.17623754,62003.0,61996.0,0.78559566]
[1728148088060,0.17623754,62003.0,62002.0,0.21657868]
[1728148088268,0.17623754,62003.0,62002.0,0.33947615]
[1728148088454,0.17623754,62003.0,62002.0,0.24289747]
[1728148088962,0.17723754,62003.0,62002.0,0.24289747]
[1728148089669,0.17623754,62003.0,62002.0,0.24289747]
[1728148089859,0.17723754,62003.0,62002.0,0.39248669]
[1728148090062,0.17723754,62003.0,62002.0,0.24289747]
[1728148090564,0.17723754,62003.0,62002.0,0.39248624]
[1728148091066,0.17823754,62003.0,62002.0,0.39348624]
[1728148091859,0.17823754,62003.0,62002.0,0.2438992]
[1728148092075,0.17823754,62003.0,62002.0,0.39348842]
[1728148093765,0.002,62003.0,62002.0,0.39348842]
[1728148094560,0.32245104,62004.0,62002.0,0.39348842]
[1728148094758,0.32245104,62004.0,62003.0,0.06449967]
[1728148095463,0.056444,62005.0,62003.0,0.06449967]
[1728148095659,0.001,62004.0,62003.0,0.06449967]
[1728148096462,0.002,62004.0,62003.0,0.06549967]
[1728148097067,0.002,62004.0,62003.0,0.06749967]
[1728148097965,0.002,62004.0,62003.0,0.003]
[1728148098464,0.002,62004.0,62003.0,0.06749967]
[1728148100862,0.3628,62004.0,62003.0,0.06749967]
[1728148101170,0.002,62004.0,62003.0,0.06749967]
[1728148101566,0.3628,62004.0,62003.0,0.06749967]
[1728148102371,0.002,62004.0,62003.0,0.06749967]
[1728148102666,0.45179707,62004.0,62003.0,0.003]
[1728148102871,0.50964101,62004.0,62003.0,0.003]
[1728148103269,0.14884101,62004.0,62003.0,0.003]
[1728148103470,0.45179707,62004.0,62003.0,0.003]
[1728148103780,0.50964101,62004.0,62003.0,0.003]
[1728148104170,0.14884101,62004.0,62003.0,0.003]
[1728148104373,0.45179707,62004.0,62003.0,0.003]
[1728148104675,0.50964101,62004.0,62003.0,0.003]
[1728148104871,0.56608601,62004.0,62003.0,0.003]
[1728148105971,0.56608545,62004.0,62003.0,0.003]
[1728148106573,0.20528545,62004.0,62003.0,0.003]
[1728148106770,0.50824151,62004.0,62003.0,0.003]
[1728148106978,0.20528545,62004.0,62003.0,0.003]
[1728148107162,0.14744151,62004.0,62003.0,0.003]
[1728148107364,0.50824151,62004.0,62003.0,0.003]
[1728148107562,0.50824151,62004.0,62003.0,0.059446]
[1728148107563,0.68602778,62004.0,62003.0,0.059446]
[1728148107864,0.50964006,62004.0,62003.0,0.059446]
[1728148108370,0.14884006,62004.0,62003.0,0.059446]
[1728148108566,0.09099651,62004.0,62003.0,0.059446]
[1728148109673,0.002,62004.0,62003.0,0.3990796]
[1728148109890,0.002,62004.0,62003.0,0.30233009]
[1728148110671,0.002,62004.0,62003.0,0.30233048]
[1728148113981,0.002,62004.0,62003.0,0.38290159]
[1728148114172,0.002,62004.0,62003.0,0.30233048]
[1728148114570,0.002,62004.0,62003.0,0.38289859]
[1728148114775,0.002,62004.0,62003.0,0.30233048]
[1728148114992,0.002,62004.0,62003.0,0.3828978]
[1728148115368,0.002,62004.0,62003.0,0.179446]
[1728148115572,0.002,62004.0,62003.0,0.3829046]
[1728148117884,0.002,62004.0,62003.0,0.179446]
[1728148118383,0.09098813,62004.0,62003.0,0.179446]
[1728148124802,0.09098813,62004.0,62003.0,0.38290412]
[1728148124803,0.002,62004.0,62003.0,0.38290412]
[1728148125088,0.002,62004.0,62003.0,0.38290349]
[1728148126789,0.002,62004.0,62003.0,0.26001413]
[1728148127178,0.002,62004.0,62003.0,0.179446]
[1728148127980,0.002,62004.0,62003.0,0.30233597]
[1728148128281,0.002,62004.0,62003.0,0.38290051]
[1728148129982,0.002,62004.0,62003.0,0.30233597]
[1728148130484,0.002,62004.0,62003.0,0.179446]
[1728148133792,0.09098797,62004.0,62003.0,0.179446]
[1728148134897,0.04148997,62004.0,62003.0,0.179446]
[1728148135794,0.002,62004.0,62003.0,0.179446]
[1728148135989,0.002,62004.0,62003.0,0.003]
[1728148136195,0.056446,62002.0,61996.0,0.056452]
[1728148136394,0.056446,62002.0,61995.0,0.12]
[1728148136395,0.056448,62001.0,61995.0,0.12]
[1728148137094,0.3628,62004.0,61999.0,0.12]
[1728148137285,0.3628,62004.0,62003.0,0.12]
[1728148137482,0.3618,62004.0,62003.0,0.12]
[1728148138193,0.3608,62004.0,62003.0,0.12]
[1728148138699,0.14883584,62004.0,62003.0,0.12]
[1728148138990,0.09099394,62004.0,62003.0,0.12]
[1728148139992,0.002,62004.0,62003.0,0.24289798]
[1728148140202,0.056444,62006.0,62003.0,0.24289798]
[1728148140499,0.0339,62008.0,62003.0,0.24289798]
[1728148140500,0.056444,62005.0,62004.0,0.12289844]
[1728148140891,0.056444,62005.0,62004.0,0.12289964]
[1728148142000,0.056444,62005.0,62004.0,0.20350785]
[1728148142198,0.056444,62005.0,62004.0,0.08060821]
[1728148142496,0.056444,62005.0,62003.0,0.08160821]
[1728148142497,0.056445,62004.0,62003.0,0.08160821]
[1728148142699,0.056445,62004.0,62003.0,0.2045136]
[1728148142991,0.056445,62004.0,62003.0,0.20350623]
[1728148143391,0.093145,62004.0,62003.0,0.20350623]
[1728148143585,0.093145,62004.0,62003.0,0.20350564]
[1728148144499,0.093145,62004.0,62002.0,0.08060084]
[1728148144500,0.0367,62004.0,62002.0,0.08060084]
[1728148144695,0.095145,62004.0,62003.0,0.08460084]
[1728148144901,0.455945,62004.0,62003.0,0.08460084]
[1728148145601,0.455945,62004.0,62003.0,0.004]
[1728148145800,0.455945,62004.0,62003.0,0.003]
[1728148146299,0.454945,62004.0,62003.0,0.003]
[1728148146493,0.454945,62004.0,62003.0,0.001]
[1728148146693,0.455945,62004.0,62003.0,0.001]
[1728148147292,0.454945,62004.0,62003.0,0.001]
[1728148147592,0.455945,62004.0,62003.0,0.003]
[1728148147997,0.60278951,62004.0,62003.0,0.003]
[1728148149508,0.72278951,62004.0,62003.0,0.003]
[1728148150007,0.60278951,62004.0,62003.0,0.003]
[1728148150303,0.66634348,62004.0,61994.0,0.056453]
[1728148150503,0.176453,61995.0,61991.0,0.056456]
[1728148150824,0.176453,61995.0,61992.0,0.12]
[1728148150825,0.08899816,61994.0,61992.0,0.12]
[1728148151105,0.12529816,61994.0,61992.0,0.12]
[1728148151324,0.08899816,61993.0,61992.0,0.12]
[1728148152400,0.08899816,61993.0,61992.0,0.121]
[1728148153198,0.08999816,61993.0,61992.0,0.121]
[1728148153610,0.09099816,61993.0,61992.0,0.121]
[1728148154503,0.08999816,61993.0,61992.0,0.121]
[1728148154695,0.08999816,61993.0,61992.0,0.12]
[1728148154912,0.09000755,61993.0,61992.0,0.12]
[1728148155111,0.001,61993.0,61992.0,0.39252839]
[1728148155301,0.092754,61994.0,61992.0,0.39252839]
[1728148155302,0.03725889,61994.0,61992.0,0.39252839]
[1728148155497,0.03725889,61994.0,61993.0,0.12291722]
[1728148156313,0.03725889,61994.0,61993.0,0.21956121]
[1728148156508,0.03825889,61994.0,61993.0,0.21956121]
[1728148156708,0.06701187,61994.0,61993.0,0.21956121]
[1728148157211,0.06701187,61994.0,61993.0,0.12291722]
[1728148157509,0.06701187,61994.0,61990.0,0.00241941]
[1728148157510,0.02975298,61994.0,61990.0,0.08294889]
[1728148157706,0.12,61991.0,61990.0,0.08294889]
[1728148158212,0.60396,61991.0,61990.0,0.08294889]
[1728148158414,0.056457,61990.0,61989.0,0.064406]
[1728148158614,0.056457,61990.0,61987.0,0.064406]
[1728148158615,0.056459,61988.0,61987.0,0.064406]
[1728148158911,0.056459,61988.0,61979.0,0.09664399]
[1728148158912,0.05646,61987.0,61986.0,0.064406]
[1728148159108,0.21266,61987.0,61986.0,0.064406]
[1728148159508,0.21266,61987.0,61982.0,0.08052948]
[1728148159509,0.056461,61986.0,61985.0,0.064406]
[1728148159707,0.056461,61986.0,61975.0,0.4808]
[1728148159708,0.9648,61986.0,61983.0,0.06437435]
[1728148159903,0.9648,61986.0,61977.0,0.08052948]
[1728148159904,0.056468,61978.0,61977.0,0.08052948]
[1728148160210,0.056462,61985.0,61973.0,0.21906449]
[1728148160211,0.056469,61977.0,61976.0,0.08052948]
[1728148160412,0.12,61977.0,61974.0,0.08052948]
[1728148160603,0.056471,61975.0,61974.0,0.08052948]
[1728148160909,0.056471,61975.0,61974.0,0.20348885]
[1728148161310,0.056472,61974.0,61973.0,0.0024205]
[1728148161612,0.176472,61974.0,61973.0,0.0024205]
[1728148162317,0.538272,61974.0,61973.0,0.0034205]
[1728148162607,0.538272,61974.0,61973.0,0.05162571]
[1728148162807,0.537272,61974.0,61973.0,0.05062571]
[1728148163018,0.538272,61974.0,61973.0,0.05162571]
[1728148163218,0.538272,61974.0,61973.0,0.0034205]
[1728148163602,0.539272,61974.0,61973.0,0.0034205]
[1728148169727,0.539272,61974.0,61973.0,0.001]
[1728148170612,0.96688,61974.0,61963.0,0.034]
[1728148170914,0.176481,61964.0,61963.0,0.034]
[1728148171308,0.056482,61963.0,61960.0,0.0374]
[1728148171707,0.056482,61963.0,61961.0,0.12]
[1728148173014,0.057482,61963.0,61961.0,0.12]
[1728148173612,0.058482,61963.0,61961.0,0.12]
[1728148173836,0.058482,61963.0,61960.0,0.0374]
[1728148175717,0.056484,61961.0,61960.0,0.0374]
[1728148175924,0.537284,61961.0,61960.0,0.0374]
[1728148176122,0.537284,61961.0,61955.0,0.0388]
[1728148176123,0.056488,61956.0,61955.0,0.0388]
[1728148176316,0.176488,61956.0,61955.0,0.0388]
[1728148176619,0.056493,61951.0,61950.0,0.0374]
[1728148176818,0.176493,61951.0,61950.0,0.0374]
[1728148177922,0.056499,61945.0,61942.0,0.056501]
[1728148178119,0.056499,61945.0,61943.0,0.1574]
[1728148178312,0.12,61946.0,61944.0,0.12300692]
[1728148178518,0.056497,61946.0,61944.0,0.08016261]
[1728148179026,0.056497,61946.0,61945.0,0.12]
[1728148179215,0.056493,61951.0,61945.0,0.12]
[1728148179414,0.056493,61951.0,61943.0,0.0374]
[1728148179415,0.0038,61954.0,61948.0,0.12]
[1728148179625,0.3608,61956.0,61953.0,0.12]
[1728148179825,0.3608,61956.0,61954.0,0.04809855]
[1728148179826,0.4808,61956.0,61954.0,0.04809855]
[1728148180035,0.05649,61954.0,61953.0,0.12]
[1728148180321,0.05649,61954.0,61943.0,0.13404399]
[1728148180322,0.05649,61954.0,61951.0,0.12]
[1728148181525,0.05649,61954.0,61949.0,0.27016261]
[1728148181729,0.05749,61954.0,61949.0,0.27016261]
[1728148182223,0.05749,61954.0,61949.0,0.19]
[1728148182224,0.41829,61954.0,61949.0,0.19]
[1728148182422,0.41829,61954.0,61949.0,0.29993209]
[1728148183127,0.41929,61954.0,61949.0,0.29993209]
[1728148183322,0.41929,61954.0,61950.0,0.08016261]
[1728148183725,0.056492,61953.0,61949.0,0.29993209]
[1728148184023,0.056492,61953.0,61950.0,0.08016261]
[1728148184823,0.057492,61953.0,61950.0,0.08016261]
[1728148185028,0.057492,61953.0,61949.0,0.21976948]
[1728148185029,0.057492,61953.0,61951.0,0.08016261]
[1728148185231,0.3618,61954.0,61949.0,0.21976948]
[1728148185232,0.30626693,61954.0,61950.0,0.08016261]
[1728148185535,0.057492,61953.0,61952.0,0.08016261]
[1728148185917,0.056492,61952.0,61951.0,0.08016261]
[1728148186325,0.056493,61951.0,61949.0,0.19]
[1728148186528,0.056493,61951.0,61950.0,0.12300333]
[1728148187428,0.056493,61951.0,61950.0,0.12300314]
[1728148187827,0.056493,61951.0,61950.0,0.21964713]
[1728148188329,0.058493,61951.0,61950.0,0.12400314]
[1728148189623,0.058493,61951.0,61950.0,0.27300953]
[1728148191126,0.002,61951.0,61950.0,0.27300953]
[1728148191330,0.002,61951.0,61950.0,0.32950353]
[1728148191919,0.002,61951.0,61950.0,0.6013792]
[1728148192119,0.0038,61957.0,61950.0,1.07009311]
[1728148192325,0.3646,61961.0,61954.0,0.19]
[1728148192532,0.056485,61960.0,61959.0,0.09652626]
[1728148192732,0.056485,61960.0,61959.0,0.21951572]
[1728148193640,0.056485,61960.0,61959.0,0.12298946]
[1728148194725,0.056485,61960.0,61959.0,0.20546954]
[1728148195326,0.056485,61960.0,61959.0,0.12498946]
[1728148195730,0.056485,61960.0,61959.0,0.12698946]
[1728148195934,0.056485,61960.0,61959.0,0.2074861]
[1728148196342,0.056485,61960.0,61959.0,0.12698946]
[1728148197143,0.056485,61960.0,61959.0,0.12700084]
[1728148198841,0.056485,61960.0,61959.0,0.2235271]
[1728148199235,0.056485,61960.0,61959.0,0.22366861]
[1728148199637,0.056485,61960.0,61959.0,0.12700084]
[1728148199940,0.056485,61960.0,61959.0,0.12699773]
[1728148199941,0.417285,61960.0,61959.0,0.12699773]
[1728148200331,0.417285,61960.0,61959.0,0.2236655]
[1728148201438,0.417285,61960.0,61959.0,0.2237439]
[1728148202131,0.417285,61960.0,61959.0,0.27629124]
[1728148202331,0.3608,61963.0,61959.0,0.2761524]
[1728148202535,0.3608,61963.0,61961.0,0.19]
[1728148202733,0.3608,61963.0,61962.0,0.2721524]
[1728148203141,0.417282,61963.0,61962.0,0.2721524]
[1728148203634,0.417282,61963.0,61962.0,0.3921524]
[1728148204631,0.417282,61963.0,61962.0,0.3931524]
[1728148204632,0.419282,61963.0,61962.0,0.3931524]
[1728148205338,0.419282,61963.0,61962.0,0.39299499]
[1728148205853,0.058482,61963.0,61962.0,0.39299499]
[1728148207435,0.058482,61963.0,61962.0,0.2439813]
[1728148207639,0.058482,61963.0,61962.0,0.39297141]
[1728148208342,0.058482,61963.0,61962.0,0.121]
[1728148211242,0.002,61963.0,61962.0,0.121]
[1728148211545,0.002,61963.0,61962.0,0.538283]
[1728148211942,0.002,61963.0,61962.0,1.022443]
[1728148212138,0.002,61963.0,61962.0,1.65214032]
[1728148212648,0.002,61963.0,61962.0,1.05214032]
[1728148212850,0.0038,61968.0,61967.0,0.056478]
[1728148213039,0.0038,61972.0,61967.0,0.176478]
[1728148213241,0.3608,61974.0,61971.0,0.12]
[1728148214738,0.0038,61980.0,61973.0,0.056473]
[1728148214739,0.060267,61980.0,61973.0,0.056473]
[1728148214940,0.060267,61980.0,61979.0,0.12]
[1728148214941,0.056467,61980.0,61979.0,0.12]
[1728148215344,0.056467,61980.0,61977.0,0.20061145]
[1728148215550,0.056468,61979.0,61977.0,0.12]